bitfinex/quotes_BTCUSD_20241120
["timestamp","ask_amount","ask_price","bid_price","bid_amount"]
[1732062599854,0.19767725,91992.0,91971.0,0.0004]
[1732062600139,0.11877725,91992.0,91971.0,0.0004]
[1732062600372,0.0081347,91992.0,91971.0,0.0004]
[1732062600589,0.0081347,91992.0,91971.0,0.00257425]
[1732062600826,0.0081347,91992.0,91973.0,0.00042]
[1732062601059,0.0097147,91992.0,91988.0,0.03568501]
[1732062601284,0.0097147,91992.0,91971.0,0.0004]
[1732062601740,0.11877725,91992.0,91971.0,0.0004]
[1732062602430,0.11877725,91992.0,91973.0,0.03702693]
[1732062603823,0.11877725,91992.0,91991.0,0.0012539]
[1732062604999,0.20767725,91992.0,91991.0,0.0012539]
[1732062605640,0.21767725,91992.0,91991.0,0.0012539]
[1732062608114,0.26677725,91992.0,91991.0,0.0012539]
[1732062609472,0.28692296,91992.0,91991.0,0.0012539]
[1732062610350,0.26677725,91992.0,91991.0,0.0012539]
[1732062611531,0.28692233,91992.0,91991.0,0.0012539]
[1732062611967,0.26677725,91992.0,91991.0,0.0012539]
[1732062612206,0.28692438,91992.0,91991.0,0.0012539]
[1732062615477,0.26677725,91992.0,91991.0,0.0012539]
[1732062615751,0.28693119,91992.0,91991.0,0.0012539]
[1732062617069,0.13735119,91992.0,91991.0,0.0012539]
[1732062617307,0.11719725,91992.0,91991.0,0.0012539]
[1732062618683,0.11877725,91992.0,91991.0,0.0012539]
[1732062620304,0.13895742,91992.0,91991.0,0.0012539]
[1732062620558,0.13737742,91992.0,91991.0,0.0012539]
[1732062623002,0.17128383,91992.0,91991.0,0.0012539]
[1732062623460,0.16970383,91992.0,91991.0,0.0012539]
[1732062624807,0.16156913,91992.0,91991.0,0.0012539]
[1732062625040,0.16978888,91992.0,91991.0,0.0012539]
[1732062628324,0.16980029,91992.0,91991.0,0.0012539]
[1732062628775,0.16980136,91992.0,91991.0,0.0012539]
[1732062634349,0.26580136,91992.0,91991.0,0.0012539]
[1732062634569,0.27936328,91992.0,91991.0,0.0012539]
[1732062634777,0.30394328,91992.0,91991.0,0.0012539]
[1732062637706,0.40081493,91992.0,91991.0,0.0012539]
[1732062637945,0.0081347,91972.0,91971.0,0.0004]
[1732062638175,0.1374296,91972.0,91971.0,0.0004]
[1732062638420,0.16982576,91972.0,91971.0,0.0004]
[1732062638843,0.13743898,91972.0,91971.0,0.0004]
[1732062639752,0.16980664,91972.0,91971.0,0.0004]
[1732062639973,0.13743898,91972.0,91971.0,0.0004]
[1732062641506,0.15743898,91972.0,91971.0,0.0004]
[1732062641716,0.19137686,91972.0,91971.0,0.0004]
[1732062643047,0.18137686,91972.0,91971.0,0.0004]
[1732062643302,0.14901898,91972.0,91971.0,0.0004]
[1732062643940,0.18136578,91972.0,91971.0,0.0004]
[1732062644416,0.14901898,91972.0,91971.0,0.0004]
[1732062644882,0.18135925,91972.0,91971.0,0.0004]
[1732062645092,0.14899066,91972.0,91971.0,0.0004]
[1732062645301,0.12877725,91972.0,91971.0,0.0004]
[1732062645533,0.18133187,91972.0,91971.0,0.0004]
[1732062646482,0.18132253,91972.0,91971.0,0.0004]
[1732062646688,0.14899082,91972.0,91971.0,0.0004]
[1732062646910,0.18132392,91972.0,91971.0,0.0004]
[1732062648711,0.18132392,91972.0,91971.0,0.0012538]
[1732062648921,0.14741082,91972.0,91971.0,0.0012538]
[1732062649135,0.17973609,91972.0,91971.0,0.0012538]
[1732062649702,0.17973609,91972.0,91956.0,0.0008541]
[1732062649703,0.01158,91957.0,91956.0,0.0008541]
[1732062649919,0.24928139,91957.0,91956.0,0.0008541]
[1732062650266,0.21695612,91957.0,91956.0,0.0008541]
[1732062652061,0.25423661,91957.0,91956.0,0.0008541]
[1732062653323,0.15792304,91957.0,91956.0,0.0008541]
[1732062653510,0.10906255,91957.0,91956.0,0.0008541]
[1732062653786,0.11064255,91957.0,91956.0,0.0008541]
[1732062656541,0.0322707,91971.0,91956.0,0.0008541]
[1732062656542,0.00158,91963.0,91956.0,0.1239541]
[1732062656757,0.20736175,91980.0,91956.0,0.1239541]
[1732062656758,0.10906255,91973.0,91957.0,0.1]
[1732062657010,0.10906255,91973.0,91960.0,0.0754]
[1732062657218,0.10906255,91973.0,91960.0,0.1754]
[1732062659699,0.00158,91979.0,91960.0,0.1754]
[1732062659700,0.00158,91979.0,91961.0,0.00217466]
[1732062659902,0.00158,91977.0,91960.0,0.1754]
[1732062660128,0.00158,91977.0,91960.0,0.1762541]
[1732062660587,0.0017082,91973.0,91960.0,0.1762541]
[1732062660817,0.11077075,91973.0,91960.0,0.1762541]
[1732062661086,0.10906255,91972.0,91960.0,0.1762541]
[1732062661277,0.00158,91970.0,91960.0,0.1762541]
[1732062661504,0.10906255,91970.0,91960.0,0.1762541]
[1732062662200,0.0017082,91973.0,91960.0,0.1762541]
[1732062662469,0.10906255,91972.0,91960.0,0.1762541]
[1732062662710,0.11077075,91973.0,91961.0,0.1754]
[1732062662928,0.11064255,91972.0,91961.0,0.1754]
[1732062663372,0.10906255,91972.0,91961.0,0.1754]
[1732062663588,0.0017082,91973.0,91961.0,0.0754]
[1732062663815,0.11077075,91973.0,91961.0,0.0754]
[1732062664059,0.0017082,91973.0,91962.0,0.1477]
[1732062664256,0.0017082,91973.0,91963.0,0.1754]
[1732062664910,0.0017082,91973.0,91964.0,0.00217454]
[1732062666477,0.0017082,91973.0,91964.0,0.00259454]
[1732062666711,0.0017082,91973.0,91958.0,0.01]
[1732062666712,0.0017082,91973.0,91966.0,0.1231]
[1732062666955,0.0017082,91973.0,91968.0,0.1231]
[1732062667419,0.0017082,91973.0,91970.0,0.1231]
[1732062667660,0.0017082,91973.0,91971.0,0.0021741]
[1732062667914,0.0017082,91973.0,91972.0,0.1231]
[1732062668142,0.0017082,91973.0,91956.0,0.24303664]
[1732062668143,0.01,91962.0,91952.0,0.0754]
[1732062668377,0.11077075,91973.0,91952.0,0.0754]
[1732062668378,0.01,91969.0,91953.0,0.00217471]
[1732062668584,0.11906255,91969.0,91953.0,0.00217471]
[1732062668836,0.0017082,91973.0,91953.0,0.00217471]
[1732062669047,0.0017082,91973.0,91954.0,0.1226]
[1732062669285,0.0017082,91973.0,91955.0,0.00217443]
[1732062669545,0.0017082,91973.0,91955.0,0.10217443]
[1732062670460,0.01,91971.0,91955.0,0.10217443]
[1732062671107,0.0017082,91973.0,91955.0,0.10217443]
[1732062671557,0.0017082,91973.0,91958.0,0.023]
[1732062671784,0.0017082,91973.0,91960.0,0.023]
[1732062672013,0.0017082,91973.0,91962.0,0.123]
[1732062672227,0.0017082,91973.0,91963.0,0.0771]
[1732062672684,0.0017082,91973.0,91962.0,0.23206255]
[1732062672685,0.0017082,91973.0,91965.0,0.023]
[1732062672906,0.0017082,91973.0,91953.0,0.24305814]
[1732062672907,0.0017082,91973.0,91968.0,0.0771]
[1732062673127,0.0017078,92006.0,91971.0,0.023]
[1732062673128,0.01,92004.0,91971.0,0.023]
[1732062673377,0.01,92004.0,91970.0,0.1]
[1732062673378,0.0017078,92006.0,91975.0,0.023]
[1732062673594,0.0017078,92006.0,91978.0,0.1226]
[1732062673812,0.0017078,92006.0,91977.0,0.123]
[1732062673813,0.0017078,92006.0,91981.0,0.1]
[1732062674059,0.0017078,92006.0,91982.0,0.07927249]
[1732062674520,0.0017078,92006.0,91983.0,0.13206255]
[1732062674747,0.0017078,92006.0,91987.0,0.123]
[1732062674974,0.0017078,92006.0,91989.0,0.0771]
[1732062675304,0.0017078,92006.0,91990.0,0.00217191]
[1732062675697,0.0017078,92006.0,91993.0,0.023]
[1732062675923,0.0017078,92006.0,91996.0,0.023]
[1732062676154,0.0017078,92006.0,91997.0,0.11123391]
[1732062676383,0.0017078,92006.0,91998.0,0.1771]
[1732062676614,0.0017078,92006.0,92000.0,0.1]
[1732062676836,0.01,92037.0,92014.0,0.1]
[1732062677072,0.01,92037.0,92015.0,0.0792704]
[1732062677324,0.01,92037.0,92016.0,0.1455]
[1732062677550,0.02,92037.0,92016.0,0.1455]
[1732062677795,0.01,92037.0,92016.0,0.1455]
[1732062678010,0.01,92037.0,92017.0,0.00217042]
[1732062679812,0.01,92033.0,92017.0,0.00217042]
[1732062680043,0.01,92033.0,92016.0,0.1455]
[1732062680761,0.01,92037.0,92016.0,0.14767044]
[1732062681204,0.02,92037.0,92016.0,0.14767044]
[1732062681424,0.01,92034.0,92016.0,0.1811766]
[1732062682575,0.01,92034.0,92017.0,0.00217045]
[1732062683042,0.02,92037.0,92017.0,0.00217045]
[1732062683269,0.01,92036.0,92017.0,0.00217045]
[1732062683517,0.01,92037.0,92017.0,0.00217045]
[1732062683518,0.01,92035.0,92017.0,0.00217045]
[1732062683970,0.01,92036.0,92017.0,0.00217045]
[1732062684191,0.0037076,92039.0,92017.0,0.00217045]
[1732062684192,0.0017076,92039.0,92017.0,0.00217045]
[1732062685120,0.01,92036.0,92017.0,0.00217045]
[1732062685337,0.012,92036.0,92016.0,0.1811766]
[1732062685808,0.012,92036.0,92017.0,0.0021704]
[1732062686030,0.01,92036.0,92017.0,0.0021704]
[1732062689645,0.0017076,92039.0,92017.0,0.0021704]
[1732062689909,0.0017076,92039.0,92019.0,0.123]
[1732062690122,0.0017076,92039.0,92021.0,0.123]
[1732062690342,0.0017076,92039.0,92024.0,0.123]
[1732062690555,0.0017076,92039.0,92026.0,0.123]
[1732062690797,0.0017076,92039.0,92027.0,0.10906255]
[1732062691005,0.0017076,92039.0,92028.0,0.123]
[1732062691213,0.0017076,92039.0,92030.0,0.1]
[1732062691647,0.00271568,92069.0,92054.0,0.5342]
[1732062691893,0.00271568,92069.0,92031.0,0.002169]
[1732062691894,0.01355258,92088.0,92071.0,0.01]
[1732062692149,0.01355258,92088.0,92055.0,0.33742882]
[1732062692150,0.01355258,92088.0,92074.0,0.01]
[1732062692607,0.003708,92095.0,92074.0,0.01]
[1732062692829,0.003708,92095.0,92075.0,0.00216661]
[1732062694152,0.002,92091.0,92075.0,0.00216661]
[1732062694395,0.10906255,92082.0,92055.0,0.1262]
[1732062694615,0.00271504,92081.0,92050.0,0.02]
[1732062694850,0.002,92075.0,92055.0,0.03678463]
[1732062695064,0.10906255,92074.0,92053.0,0.01]
[1732062695515,0.10906255,92074.0,92051.0,0.01]
[1732062695516,0.002,92070.0,92051.0,0.01]
[1732062696029,0.002,92070.0,92049.0,0.04593171]
[1732062696030,0.002,92070.0,92053.0,0.01]
[1732062696490,0.10906255,92074.0,92053.0,0.01]
[1732062696704,0.10906255,92074.0,92053.0,0.0108532]
[1732062697142,0.10906255,92074.0,92054.0,0.00216778]
[1732062697367,0.10906255,92074.0,92061.0,0.1]
[1732062697601,0.10906255,92074.0,92062.0,0.00216778]
[1732062697815,0.10906255,92074.0,92054.0,0.00216778]
[1732062698285,0.11106255,92074.0,92053.0,0.0008532]
[1732062698505,0.11106255,92074.0,92053.0,0.0108532]
[1732062698733,0.11106255,92074.0,92061.0,0.1]
[1732062698734,0.002,92067.0,92061.0,0.1]
[1732062699175,0.002,92067.0,92053.0,0.0008532]
[1732062699403,0.00271518,92073.0,92053.0,0.0008532]
[1732062699404,0.002,92063.0,92053.0,0.0008532]
[1732062700765,0.00271536,92071.0,92053.0,0.0008532]
[1732062700766,0.002,92057.0,92053.0,0.0008532]
[1732062701887,0.002,92063.0,92053.0,0.0008532]
[1732062702100,0.10906255,92062.0,92053.0,0.0008532]
[1732062702533,0.002,92067.0,92054.0,0.00216876]
[1732062703864,0.02013902,92065.0,92053.0,0.0008532]
[1732062704102,0.1,92098.0,92070.0,0.002]
[1732062704326,0.06591547,92109.0,92064.0,0.01]
[1732062704327,0.10906255,92090.0,92064.0,0.01]
[1732062704597,0.05523762,92097.0,92053.0,0.0008532]
[1732062704598,0.10906255,92097.0,92090.0,0.01]
[1732062704834,0.0004,92119.0,92091.0,0.01]
[1732062705093,0.10906255,92112.0,92102.0,0.01]
[1732062705323,0.10906255,92112.0,92096.0,0.01]
[1732062705324,0.10906255,92112.0,92103.0,0.01]
[1732062705553,0.10906255,92112.0,92107.0,0.01]
[1732062706229,0.0004,92119.0,92111.0,0.01]
[1732062706678,0.0004,92119.0,92112.0,0.02]
[1732062706896,0.0004,92119.0,92112.0,0.022]
[1732062707328,0.0004,92119.0,92112.0,0.02]
[1732062707597,0.0004,92119.0,92112.0,0.022]
[1732062709592,0.0004,92119.0,92112.0,0.02417098]
[1732062711504,0.0004,92119.0,92112.0,0.02388387]
[1732062714372,0.0017078,92113.0,92112.0,0.02388387]
[1732062720649,0.0017078,92113.0,92112.0,0.02171289]
[1732062726460,0.0017078,92113.0,92112.0,0.01971289]
[1732062727736,0.0017078,92113.0,92112.0,0.02171289]
[1732062730649,0.0017078,92113.0,92109.0,0.0008528]
[1732062730650,0.11077035,92113.0,92109.0,0.0008528]
[1732062730893,0.11069582,92112.0,92109.0,0.0008528]
[1732062731155,0.10906255,92111.0,92109.0,0.0008528]
[1732062731360,0.12833327,92110.0,92109.0,0.0008528]
[1732062731594,0.23739582,92110.0,92109.0,0.0008528]
[1732062731810,0.23576255,92110.0,92109.0,0.0008528]
[1732062732754,0.19006255,92110.0,92109.0,0.0008528]
[1732062732974,0.19169582,92110.0,92109.0,0.0008528]
[1732062735319,0.19198293,92110.0,92109.0,0.0008528]
[1732062735534,0.21221682,92110.0,92109.0,0.0008528]
[1732062735969,0.21192971,92110.0,92109.0,0.0008528]
[1732062736209,0.21221682,92110.0,92109.0,0.0008528]
[1732062737316,0.21192971,92110.0,92109.0,0.0008528]
[1732062737762,0.19169582,92110.0,92109.0,0.0008528]
[1732062738946,0.11069582,92110.0,92109.0,0.0008528]
[1732062741167,0.15938293,92110.0,92109.0,0.0008528]
[1732062741374,0.15909582,92110.0,92109.0,0.0008528]
[1732062741586,0.20258576,92110.0,92109.0,0.0008528]
[1732062741814,0.27908576,92110.0,92109.0,0.0008528]
[1732062742112,0.27745249,92110.0,92109.0,0.0008528]
[1732062742338,0.25445249,92110.0,92109.0,0.0008528]
[1732062743216,0.2985885,92110.0,92109.0,0.0008528]
[1732062743678,0.3985885,92110.0,92109.0,0.0008528]
[1732062744128,0.2985885,92110.0,92109.0,0.0008528]
[1732062746595,0.2985885,92110.0,92067.0,0.00971289]
[1732062746596,0.00028711,92093.0,92067.0,0.00971289]
[1732062746809,0.24480139,92110.0,92067.0,0.00971289]
[1732062746810,0.10906255,92089.0,92067.0,0.00971289]
[1732062747020,0.00163327,92088.0,92067.0,0.00971289]
[1732062747263,0.10906255,92087.0,92070.0,0.002]
[1732062747479,0.00163327,92086.0,92070.0,0.002]
[1732062747743,0.10906255,92085.0,92070.0,0.002]
[1732062747957,0.00163327,92084.0,92070.0,0.002]
[1732062748182,0.10906255,92076.0,92053.0,0.01056609]
[1732062748399,0.10906255,92071.0,92053.0,0.0008532]
[1732062748608,0.00163327,92070.0,92053.0,0.0008532]
[1732062748816,0.10906255,92069.0,92053.0,0.0008532]
[1732062749043,0.00163327,92068.0,92053.0,0.0008532]
[1732062749265,0.10906255,92067.0,92053.0,0.0008532]
[1732062749495,0.00163327,92066.0,92053.0,0.0008532]
[1732062749753,0.10906255,92065.0,92053.0,0.0008532]
[1732062749968,0.00163327,92064.0,92053.0,0.0008532]
[1732062750191,0.10906255,92063.0,92053.0,0.0008532]
[1732062750437,0.00163327,92062.0,92053.0,0.0008532]
[1732062750682,0.10906255,92061.0,92053.0,0.0008532]
[1732062750929,0.00163327,92060.0,92053.0,0.0008532]
[1732062751156,0.10906255,92059.0,92053.0,0.0008532]
[1732062751372,0.00163327,92058.0,92053.0,0.0008532]
[1732062751592,0.10906255,92057.0,92053.0,0.0008532]
[1732062751826,0.00163327,92056.0,92053.0,0.0008532]
[1732062752064,0.10906255,92055.0,92053.0,0.0008532]
[1732062752546,0.00163327,92054.0,92053.0,0.0008532]
[1732062752772,0.11069582,92054.0,92053.0,0.0008532]
[1732062758351,0.11069582,92054.0,92029.0,0.02712763]
[1732062758588,0.10906255,92053.0,92029.0,0.02712763]
[1732062758808,0.10906255,92053.0,92007.0,0.01]
[1732062758809,0.00163327,92052.0,92007.0,0.01]
[1732062759025,0.10906255,92051.0,92010.0,0.01]
[1732062759255,0.00163327,92050.0,92029.0,0.002]
[1732062759475,0.10906255,92047.0,92000.0,0.01]
[1732062759689,0.10906255,92040.0,92006.0,0.04440329]
[1732062759906,0.00163327,92039.0,92006.0,0.04440329]
[1732062760120,0.10906255,92038.0,91994.0,0.01]
[1732062760339,0.00163327,92037.0,91994.0,0.01]
[1732062760554,0.10906255,92036.0,91994.0,0.01]
[1732062760780,0.00163327,92035.0,91994.0,0.01]
[1732062761002,0.18666255,92031.0,91985.0,0.02]
[1732062761249,0.00163327,92030.0,91985.0,0.02]
[1732062761475,0.10906255,92029.0,91998.0,0.0815]
[1732062761689,0.00163327,92028.0,91998.0,0.0815]
[1732062761914,0.10906255,92027.0,91998.0,0.0815]
[1732062762154,0.00163327,92026.0,91998.0,0.0815]
[1732062762369,0.10906255,92025.0,91998.0,0.0815]
[1732062762584,0.00163327,92024.0,91998.0,0.0815]
[1732062762788,0.10906255,92023.0,91998.0,0.0815]
[1732062762993,0.00163327,92022.0,91998.0,0.0815]
[1732062763228,0.10906255,92021.0,92009.0,0.002]
[1732062763461,0.00163327,92031.0,92009.0,0.002]
[1732062763689,0.0776,92041.0,92019.0,0.002]
[1732062763690,0.10906255,92030.0,92019.0,0.002]
[1732062763907,0.00163327,92029.0,92019.0,0.002]
[1732062764126,0.10906255,92028.0,92019.0,0.002]
[1732062764356,0.00163327,92027.0,92019.0,0.002]
[1732062764567,0.10906255,92026.0,92019.0,0.002]
[1732062764794,0.00163327,92025.0,92015.0,0.002]
[1732062765108,0.10906255,92024.0,92015.0,0.002]
[1732062765661,0.10906255,92024.0,92023.0,0.002]
[1732062766554,0.10906255,92024.0,92003.0,0.04440704]
[1732062766779,0.10906255,92024.0,92023.0,0.002]
[1732062767010,0.00163327,92040.0,92017.0,0.0815]
[1732062767237,0.10906255,92039.0,92017.0,0.08367327]
[1732062767460,0.00163327,92038.0,92017.0,0.08367327]
[1732062767707,0.10906255,92037.0,92029.0,0.002]
[1732062767939,0.00163327,92036.0,92025.0,0.002]
[1732062768169,0.10906255,92035.0,92025.0,0.002]
[1732062768392,0.00163327,92034.0,92025.0,0.002]
[1732062768605,0.00163327,92034.0,92022.0,0.002]
[1732062768606,0.10906255,92033.0,92022.0,0.002]
[1732062768830,0.00163327,92032.0,92025.0,0.002]
[1732062769073,0.10906255,92031.0,92025.0,0.002]
[1732062772081,0.10906255,92031.0,92019.0,0.002]
[1732062772299,0.00163327,92030.0,92019.0,0.002]
[1732062772530,0.10906255,92029.0,92019.0,0.002]
[1732062773001,0.10906255,92029.0,92022.0,0.002]
[1732062773703,0.10906255,92029.0,92025.0,0.002]
[1732062773934,0.10906255,92029.0,92019.0,0.002]
[1732062774172,0.00163327,92028.0,92019.0,0.002]
[1732062774399,0.10906255,92027.0,92019.0,0.002]
[1732062775105,0.10906255,92027.0,92022.0,0.002]
[1732062776011,0.10906255,92027.0,92020.0,0.002]
[1732062776706,0.10906255,92027.0,92019.0,0.002]
[1732062776912,0.10906255,92027.0,92016.0,0.0008526]
[1732062776913,0.00163327,92026.0,92016.0,0.0008526]
[1732062777131,0.10906255,92025.0,92016.0,0.0008526]
[1732062777361,0.00163327,92024.0,92016.0,0.0008526]
[1732062777583,0.10906255,92023.0,92016.0,0.0008526]
[1732062777801,0.00163327,92022.0,92016.0,0.0008526]
[1732062778070,0.10906255,92021.0,92016.0,0.0008526]
[1732062778292,0.00163327,92020.0,92016.0,0.0008526]
[1732062778516,0.10906255,92019.0,92016.0,0.0008526]
[1732062778740,0.00163327,92018.0,92016.0,0.0008526]
[1732062778963,0.10906255,92017.0,92016.0,0.0008526]
[1732062782072,0.08732755,92017.0,92016.0,0.0008526]
[1732062782309,0.01,92046.0,92024.0,0.002]
[1732062782535,0.01,92046.0,92022.0,0.002]
[1732062782536,0.10906255,92045.0,92022.0,0.002]
[1732062782765,0.10906255,92045.0,92020.0,0.002]
[1732062783475,0.10906255,92045.0,92023.0,0.002]
[1732062783930,0.10906255,92045.0,92032.0,0.002]
[1732062784155,0.10906255,92045.0,92016.0,0.0008526]
[1732062784156,0.10906255,92045.0,92037.0,0.0453]
[1732062784656,0.10906255,92045.0,92041.0,0.002]
[1732062784895,0.10906255,92045.0,92037.0,0.0453]
[1732062785568,0.01,92064.0,92043.0,0.002]
[1732062785825,0.1,92068.0,92043.0,0.002]
[1732062785826,0.10906255,92063.0,92043.0,0.002]
[1732062786269,0.10906255,92063.0,92041.0,0.002]
[1732062786707,0.01,92059.0,92041.0,0.002]
[1732062786933,0.10906255,92058.0,92041.0,0.002]
[1732062787822,0.10906255,92058.0,92043.0,0.002]
[1732062788291,0.10906255,92058.0,92046.0,0.002]
[1732062788789,0.10906255,92058.0,92043.0,0.002]
[1732062789456,0.10906255,92058.0,92046.0,0.002]
[1732062789693,0.10906255,92058.0,92043.0,0.002]
[1732062790575,0.10906255,92058.0,92050.0,0.002]
[1732062791021,0.10906255,92058.0,92053.0,0.002]
[1732062791236,0.10906255,92058.0,92038.0,0.00217262]
[1732062792819,0.1,92078.0,92057.0,0.002]
[1732062793039,0.10906255,92077.0,92052.0,0.002]
[1732062793252,0.01,92074.0,92046.0,0.002]
[1732062793472,0.10906255,92067.0,92043.0,0.002]
[1732062793687,0.10906255,92067.0,92039.0,0.0776]
[1732062793688,0.0791,92066.0,92039.0,0.0776]
[1732062793900,0.0791,92066.0,92038.0,0.102]
[1732062793901,0.10906255,92065.0,92038.0,0.102]
[1732062794109,0.10906255,92065.0,92042.0,0.002]
[1732062797605,0.10906255,92065.0,92045.0,0.00217257]
[1732062798024,0.10906255,92065.0,92057.0,0.002]
[1732062798458,0.10906255,92065.0,92058.0,0.0492]
[1732062800399,0.01,92084.0,92060.0,0.002]
[1732062800614,0.04459004,92077.0,92060.0,0.002]
[1732062800825,0.09697131,92094.0,92065.0,0.002]
[1732062800826,0.10906255,92076.0,92065.0,0.002]
[1732062801493,0.10906255,92076.0,92064.0,0.002]
[1732062801702,0.10906255,92076.0,92074.0,0.002]
[1732062802551,0.04449317,92094.0,92074.0,0.002]
[1732062802755,0.10906255,92093.0,92075.0,0.1268]
[1732062804563,0.10906255,92093.0,92087.0,0.002]
[1732062804776,0.10906255,92093.0,92076.0,0.00217208]
[1732062804983,0.0017056,92109.0,92076.0,0.00217208]
[1732062805184,0.10906255,92108.0,92077.0,0.0757]
[1732062805416,0.10906255,92108.0,92088.0,0.002]
[1732062806448,0.10906255,92108.0,92077.0,0.0757]
[1732062806681,0.10906255,92108.0,92078.0,0.00217162]
[1732062807316,0.10906255,92108.0,92079.0,0.1248]
[1732062807527,0.10906255,92108.0,92080.0,0.00217162]
[1732062808223,0.10906255,92108.0,92096.0,0.0757]
[1732062808469,0.10906255,92108.0,92099.0,0.002]
[1732062808696,0.10906255,92108.0,92096.0,0.0757]
[1732062811425,0.10906255,92108.0,92083.0,0.0757]
[1732062811680,0.10906255,92108.0,92088.0,0.002]
[1732062811956,0.10906255,92108.0,92092.0,0.002]
[1732062812439,0.10906255,92108.0,92087.0,0.002]
[1732062812665,0.10906255,92108.0,92088.0,0.002]
[1732062812925,0.11077015,92108.0,92088.0,0.002]
[1732062813408,0.11077015,92108.0,92090.0,0.002]
[1732062815463,0.11077015,92108.0,92083.0,0.0757]
[1732062815464,0.11077015,92108.0,92088.0,0.002]
[1732062815673,0.11077015,92108.0,92087.0,0.002]
[1732062817835,0.11077015,92108.0,92090.0,0.002]
[1732062818686,0.15430067,92108.0,92090.0,0.002]
[1732062819854,0.01,92105.0,92083.0,0.0757]
[1732062820073,0.19196255,92106.0,92074.0,0.082]
[1732062820074,0.11906255,92098.0,92074.0,0.082]
[1732062822504,0.10906255,92098.0,92082.0,0.082]
[1732062823065,0.10906255,92098.0,92082.0,0.08617174]
[1732062823129,0.04523812,92108.0,92082.0,0.18617174]
[1732062823346,0.10906255,92107.0,92087.0,0.002]
[1732062823516,0.10906255,92107.0,92082.0,0.082]
[1732062824288,0.10906255,92107.0,92085.0,0.002]
[1732062825158,0.10906255,92107.0,92082.0,0.082]
[1732062825364,0.10906255,92107.0,92085.0,0.002]
[1732062826804,0.10906255,92107.0,92088.0,0.002]
[1732062827616,0.10906255,92107.0,92085.0,0.002]
[1732062828928,0.10906255,92107.0,92088.0,0.002]
[1732062829396,0.10906255,92107.0,92085.0,0.002]
[1732062830519,0.10906255,92107.0,92082.0,0.082]
[1732062830751,0.10906255,92107.0,92085.0,0.002]
[1732062831000,0.10906255,92107.0,92082.0,0.082]
[1732062831210,0.10906255,92107.0,92082.0,0.08417173]
[1732062831463,0.10906255,92107.0,92102.0,0.084]
[1732062831909,0.10906255,92107.0,92104.0,0.002]
[1732062832361,0.10906255,92107.0,92106.0,0.002]
[1732062832577,0.10906255,92107.0,92104.0,0.002]
[1732062832808,0.10906255,92107.0,92102.0,0.082]
[1732062833279,0.10906255,92107.0,92099.0,0.0474]
[1732062833537,0.10906255,92107.0,92094.0,0.082]
[1732062835999,0.11077015,92107.0,92089.0,0.0474]
[1732062840724,0.11077015,92107.0,92066.0,0.1]
[1732062840725,0.01,92105.0,92080.0,0.002]
[1732062840962,0.01,92101.0,92078.0,0.0452]
[1732062841196,0.10906255,92100.0,92078.0,0.0472]
[1732062842244,0.10906255,92100.0,92080.0,0.002]
[1732062842467,0.10906255,92100.0,92081.0,0.00217189]
[1732062842675,0.10906255,92100.0,92078.0,0.0452]
[1732062842676,0.10906255,92100.0,92085.0,0.002]
[1732062842881,0.10906255,92100.0,92092.0,0.001]
[1732062843089,0.10906255,92100.0,92092.0,0.002]
[1732062843742,0.10906255,92100.0,92080.0,0.002]
[1732062845666,0.10906255,92100.0,92085.0,0.002]
[1732062846135,0.10906255,92100.0,92089.0,0.002]
[1732062846399,0.10906255,92100.0,92080.0,0.04437554]
[1732062846400,0.10906255,92100.0,92085.0,0.002]
[1732062846601,0.10906255,92100.0,92087.0,0.002]
[1732062847216,0.10906255,92100.0,92080.0,0.04437554]
[1732062847632,0.10906255,92100.0,92085.0,0.002]
[1732062848933,0.10906255,92100.0,92080.0,0.002]
[1732062849175,0.10906255,92100.0,92078.0,0.0452]
[1732062849375,0.10906255,92100.0,92081.0,0.002]
[1732062849580,0.10906255,92100.0,92080.0,0.002]
[1732062849999,0.0802,92099.0,92075.0,0.002]
[1732062850223,0.10906255,92098.0,92075.0,0.002]
[1732062851281,0.10906255,92098.0,92069.0,0.04329489]
[1732062851282,0.11906255,92092.0,92063.0,0.19445514]
[1732062851495,0.09718775,92097.0,92062.0,0.002]
[1732062851496,0.2162503,92090.0,92062.0,0.002]
[1732062851713,0.2162503,92090.0,92061.0,0.0813]
[1732062851714,0.09718775,92089.0,92061.0,0.0833]
[1732062851951,0.09718775,92086.0,92061.0,0.0833]
[1732062852166,0.10906255,92085.0,92061.0,0.0813]
[1732062852881,0.0478,92083.0,92057.0,0.002]
[1732062853125,0.10906255,92071.0,92049.0,0.0485]
[1732062853372,0.10906255,92071.0,92045.0,0.0813]
[1732062854116,0.0802,92070.0,92045.0,0.0813]
[1732062854359,0.10906255,92069.0,92045.0,0.0813]
[1732062856488,0.10906255,92069.0,92054.0,0.002]
[1732062856698,0.10906255,92069.0,92057.0,0.002]
[1732062857145,0.10906255,92069.0,92050.0,0.002]
[1732062857399,0.10906255,92069.0,92045.0,0.0813]
[1732062857916,0.10906255,92069.0,92040.0,0.0505]
[1732062858157,0.01,92068.0,92040.0,0.0505]
[1732062858408,0.10906255,92067.0,92040.0,0.0505]
[1732062858880,0.10906255,92067.0,92040.0,0.0485]
[1732062859311,0.10906255,92067.0,92040.0,0.0505]
[1732062859992,0.10906255,92067.0,92040.0,0.0485]
[1732062860226,0.127,92066.0,92036.0,0.002]
[1732062860446,0.10906255,92065.0,92036.0,0.002]
[1732062860902,0.127,92066.0,92036.0,0.002]
[1732062860903,0.10906255,92061.0,92036.0,0.002]
[1732062861156,0.10906255,92048.0,92028.0,0.0008538]
[1732062864884,0.10906255,92048.0,92002.0,0.01]
[1732062864885,0.0831,92047.0,92015.0,0.01124583]
[1732062865117,0.10906255,92046.0,92016.0,0.00217319]
[1732062865375,0.10906255,92046.0,92015.0,0.01124583]
[1732062865613,0.15636255,92046.0,92015.0,0.01124583]
[1732062866055,0.10906255,92043.0,92012.0,0.0008537]
[1732062870052,0.10906255,92043.0,92013.0,0.00217342]
[1732062870513,0.10906255,92043.0,92015.0,0.0008538]
[1732062870776,0.10906255,92043.0,92016.0,0.00217318]